fUSD/lending_fUSD_20260630
["ID","MTS","AMOUNT","RATE_DAILY","PERIOD"]
[426773626,1782809448000,-29600.0,0.00015616,2]
[426773625,1782809448000,-7790.64587858,0.00015616,2]
[426773628,1782809448000,-7949.90241838,0.00015616,2]
[426773627,1782809448000,-592.63,0.00015616,2]
[426773646,1782810257000,176.07,8.388e-05,2]
[426773653,1782810631000,-150.0,9.73e-05,2]
[426773652,1782810631000,-348.67,9.704e-05,2]
[426773655,1782810631000,-152.0,9.806e-05,2]
[426773660,1782810631000,-219.9,0.00010018,2]
[426773656,1782810631000,-762.176129,9.953e-05,2]
[426773658,1782810631000,-810.58,9.972e-05,2]
[426773659,1782810631000,-150.0,0.00010003,2]
[426773661,1782810631000,-348.7,0.00010189,2]
[426773657,1782810631000,-348.67,9.953e-05,2]
[426773662,1782810631000,-348.67,0.00010202,2]
[426773663,1782810631000,-852.93,0.00010353,2]
[426773654,1782810631000,-250.0,9.755e-05,2]
[426773668,1782810631000,-150.0,0.00010409,2]
[426773675,1782810631000,-151.0,0.0001041,2]
[426773664,1782810631000,-150.0,0.00010409,2]
[426773676,1782810631000,-151.0,0.0001041,2]
[426773674,1782810631000,-152.0,0.0001041,2]
[426773667,1782810631000,-150.0,0.00010409,2]
[426773670,1782810631000,-150.0,0.00010409,2]
[426773669,1782810631000,-151.0,0.00010409,2]
[426773672,1782810631000,-150.0,0.00010409,2]
[426773673,1782810631000,-150.0,0.0001041,2]
[426773665,1782810631000,-151.0,0.00010409,2]
[426773666,1782810631000,-152.0,0.00010409,2]
[426773671,1782810631000,-150.0,0.00010409,2]
[426773695,1782810632000,-150.0,0.0001041,2]
[426773716,1782810632000,-152.0,0.0001041,2]
[426773701,1782810632000,-151.0,0.0001041,2]
[426773703,1782810632000,-153.0,0.0001041,2]
[426773705,1782810632000,-279.93351834,0.0001041,2]
[426773722,1782810632000,-216.62538722,0.00010522,2]
[426773717,1782810632000,-163.88,0.0001041,2]
[426773711,1782810632000,-151.0,0.0001041,2]
[426773715,1782810632000,-152.0,0.0001041,2]
[426773719,1782810632000,-348.67,0.00010451,2]
[426773707,1782810632000,-150.0,0.0001041,2]
[426773709,1782810632000,-151.0,0.0001041,2]
[426773713,1782810632000,-151.0,0.0001041,2]
[426773720,1782810632000,-66187.50791783,0.000105,2]
[426773694,1782810632000,-151.0,0.0001041,2]
[426773718,1782810632000,-4570.38,0.00010411,2]
[426773696,1782810632000,-152.0,0.0001041,2]
[426773682,1782810632000,-150.0,0.0001041,2]
[426773692,1782810632000,-151.0,0.0001041,2]
[426773678,1782810632000,-300.0,0.0001041,2]
[426773677,1782810632000,-150.0,0.0001041,2]
[426773679,1782810632000,-151.0,0.0001041,2]
[426773681,1782810632000,-151.0,0.0001041,2]
[426773680,1782810632000,-152.0,0.0001041,2]
[426773683,1782810632000,-150.0,0.0001041,2]
[426773684,1782810632000,-153.0,0.0001041,2]
[426773699,1782810632000,-151.0,0.0001041,2]
[426773685,1782810632000,-151.0,0.0001041,2]
[426773686,1782810632000,-153.0,0.0001041,2]
[426773688,1782810632000,-152.0,0.0001041,2]
[426773693,1782810632000,-152.0,0.0001041,2]
[426773689,1782810632000,-152.0,0.0001041,2]
[426773690,1782810632000,-150.0,0.0001041,2]
[426773697,1782810632000,-151.0,0.0001041,2]
[426773691,1782810632000,-151.0,0.0001041,2]
[426773687,1782810632000,-151.0,0.0001041,2]
[426773732,1782810632000,-166.66,0.00010959,2]
[426773736,1782810632000,-160.0,0.00011095,2]
[426773725,1782810632000,-500.0,0.00010674,2]
[426773741,1782810632000,-852.93,0.00011388,2]
[426773747,1782810632000,-242.75728397,0.00012027,2]
[426773748,1782810632000,-151.0,0.00012075,2]
[426773750,1782810632000,-9999.99,0.00012087,2]
[426773752,1782810632000,-9412.88900804,0.00012087,2]
[426773749,1782810632000,-810.0,0.00012078,2]
[426773757,1782810632000,-375.12799992,0.00012087,2]
[426773755,1782810632000,-1033.12285274,0.00012087,2]
[426773754,1782810632000,-7.15084161,0.00012087,2]
[426773751,1782810632000,-150.99,0.00012087,2]
[426773724,1782810632000,-250.0,0.00010674,2]
[426773758,1782810632000,-1112.52220542,0.00012087,2]
[426773756,1782810632000,-504.95050947,0.00012087,2]
[426773759,1782810632000,-1804.97286512,0.00012087,2]
[426773760,1782810632000,-314.62729366,0.00012087,2]
[426773742,1782810632000,-166.66,0.00011397,2]
[426773743,1782810632000,-166.66,0.00011507,2]
[426773753,1782810632000,-587.10099196,0.00012087,2]
[426773739,1782810632000,-151.0,0.00011213,2]
[426773740,1782810632000,-166.66,0.00011288,2]
[426773731,1782810632000,-151.0,0.00010958,2]
[426773728,1782810632000,-179.68497723,0.00010945,2]
[426773723,1782810632000,-852.93,0.00010612,2]
[426773726,1782810632000,-272.29975839,0.000107,2]
[426773721,1782810632000,-236.40887867,0.000105,2]
[426773730,1782810632000,-151.0,0.00010958,2]
[426773729,1782810632000,-260.91896649,0.00010958,2]
[426773727,1782810632000,-852.93,0.0001087,2]
[426773734,1782810632000,-6548.16715678,0.00011,2]
[426773737,1782810632000,-852.93,0.00011129,2]
[426773746,1782810632000,-14258.45856072,0.00011978,2]
[426773735,1782810632000,-166.66,0.00011068,2]
[426773745,1782810632000,-151.0,0.00011663,2]
[426773738,1782810632000,-166.66,0.00011178,2]
[426773744,1782810632000,-249.01,0.00011511,2]
[426773733,1782810632000,-150.0,0.00010959,2]
[426773775,1782810638000,-367.97,9.866e-05,2]
[426773776,1782810638000,-367.97,0.00010189,2]
[426773778,1782810638000,-1733.58218583,0.00010541,2]
[426773777,1782810638000,-688.292,0.00010541,2]
[426773779,1782810638000,-15648.16585792,0.00010541,2]
[426773780,1782810638000,-290.84887371,0.00010541,2]
[426773782,1782810638000,-1257.23023982,0.00010541,2]
[426773783,1782810638000,-6176.9433851,0.00010541,2]
[426773784,1782810638000,-673.39682784,0.00010541,2]
[426773787,1782810638000,-592.58807445,0.00010541,2]
[426773785,1782810638000,-7801.93599774,0.00010541,2]
[426773786,1782810638000,-602.5,0.00010541,2]
[426773781,1782810638000,-8360.72428907,0.00010541,2]
[426773791,1782810640000,-43.00328051,0.00010541,2]
[426773792,1782810640000,-764.70457761,0.00010541,2]
[426773793,1782810640000,-971.3562237,0.00010541,2]
[426773794,1782810640000,-451.58738955,0.00010541,2]
[426773795,1782810640000,-5552.2,0.00010541,2]
[426773796,1782810640000,-5111.08673616,0.00010541,2]
[426773797,1782810640000,-342.108,0.00010541,2]
[426773799,1782810640000,-760.59301696,0.00010541,2]
[426773798,1782810640000,-446.776808,0.00010541,2]
[426773801,1782810641000,-291.51088287,0.00010541,2]
[426773800,1782810641000,-3593.99467973,0.00010541,2]
[426773815,1782810642000,-453.3,0.00010541,2]
[426773821,1782810643000,-302.17188677,0.00010541,2]
[426773820,1782810643000,-93.93093729,0.00010541,2]
[426773822,1782810643000,-27316.8839618,0.00010541,2]
[426773824,1782810643000,-3891.37130719,0.00010541,2]
[426773826,1782810644000,-501.71050209,0.00010541,2]
[426773825,1782810644000,-7675.75262192,0.00010541,2]
[426773845,1782810646000,-7816.88226239,0.00010541,2]
[426773853,1782811641000,2900.0,0.000108,3]
[426773854,1782811643000,5900.0,0.000109,3]
[426773856,1782811716000,-171.23,9.049e-05,2]
[426773855,1782811716000,-3115.89,9.044e-05,2]
[426773858,1782811716000,-104.46632695,9.084e-05,2]
[426773859,1782811716000,-150.0,9.089e-05,2]
[426773863,1782811716000,-500.0,9.176e-05,2]
[426773857,1782811716000,-385.88367305,9.084e-05,2]
[426773862,1782811716000,-241.0,9.174e-05,2]
[426773861,1782811716000,-310.75,9.123e-05,2]
[426773865,1782811716000,-405.77423737,9.176e-05,2]
[426773866,1782811716000,-119.22578519,9.177e-05,2]
[426773864,1782811716000,-355.75393652,9.176e-05,2]
[426773860,1782811716000,-196.84,9.095e-05,2]
[426773867,1782811716000,-3673.00367305,9.177e-05,2]
[426773868,1782811741000,-3753.22054176,9.177e-05,2]
[426773869,1782811741000,-114.37948393,9.286e-05,2]
[426773870,1782811741000,-398.88167045,9.286e-05,2]
[426773871,1782811741000,-500.0,9.286e-05,2]
[426773874,1782811741000,-500.0,9.286e-05,2]
[426773875,1782811741000,-517.58850676,9.286e-05,2]
[426773876,1782811741000,-324.13290924,9.286e-05,2]
[426773877,1782811741000,-554.19450164,9.287e-05,2]
[426773878,1782811741000,-1679.77283138,9.287e-05,2]
[426773873,1782811741000,-500.0,9.286e-05,2]
[426773872,1782811741000,-572.8024376,9.286e-05,2]
[426773879,1782811762000,-5410.393996,9.287e-05,2]
[426773880,1782811767000,-4055.89948334,9.287e-05,2]
[426773882,1782811767000,-626.91477773,9.287e-05,2]
[426773881,1782811767000,-4055.89948334,9.287e-05,2]
[426773884,1782811790000,-4230.67375823,9.287e-05,2]
[426773885,1782811790000,-150.63734327,9.287e-05,2]
[426773883,1782811790000,-4230.67375823,9.287e-05,2]
[426773888,1782811831000,-347.89,9.424e-05,2]
[426773887,1782811831000,-162.99,9.335e-05,2]
[426773886,1782811831000,-4814.78006684,9.287e-05,2]
[426773902,1782811832000,-302.15,9.951e-05,2]
[426773903,1782811832000,-163.89,9.956e-05,2]
[426773908,1782811832000,-938.5992,0.0001,2]
[426773905,1782811832000,-262.86404006,0.0001,2]
[426773910,1782811832000,-302.97,0.00010053,2]
[426773909,1782811832000,-322.5,0.00010027,2]
[426773906,1782811832000,-463.72332494,0.0001,2]
[426773912,1782811832000,-302.97,0.00010162,2]
[426773900,1782811832000,-302.27,9.895e-05,2]
[426773904,1782811832000,-302.97,9.998e-05,2]
[426773899,1782811832000,-302.97,9.888e-05,2]
[426773911,1782811832000,-302.97,0.00010108,2]
[426773901,1782811832000,-302.97,9.943e-05,2]
[426773898,1782811832000,-308.52735718,9.884e-05,2]
[426773896,1782811832000,-302.7,9.75e-05,2]
[426773895,1782811832000,-302.53,9.75e-05,2]
[426773894,1782811832000,-302.27,9.738e-05,2]
[426773891,1782811832000,-208.81,9.583e-05,2]
[426773893,1782811832000,-302.7,9.647e-05,2]
[426773892,1782811832000,-302.53,9.617e-05,2]
[426773889,1782811832000,-200.0,9.477e-05,2]
[426773890,1782811832000,-170.2,9.538e-05,2]
[426773897,1782811832000,-302.15,9.761e-05,2]
[426773915,1782811832000,-302.97,0.00010272,2]
[426773907,1782811832000,-693.70236064,0.0001,2]
[426773914,1782811832000,-302.97,0.00010217,2]
[426773913,1782811832000,-150.0,0.00010217,2]
[426773942,1782811832000,-332.3376,0.00010534,2]
[426773940,1782811832000,-316.9999,0.00010534,2]
[426773938,1782811832000,-6267.64629606,0.00010534,2]
[426773934,1782811832000,-1254.41808677,0.00010534,2]
[426773936,1782811832000,-727.49530318,0.00010534,2]
[426773933,1782811832000,-99225.42200104,0.00010534,2]
[426773929,1782811832000,-359202.78969859,0.00010534,2]
[426773935,1782811832000,-330.28,0.00010534,2]
[426773932,1782811832000,-12682.51626848,0.00010534,2]
[426773930,1782811832000,-5632.21030141,0.00010534,2]
[426773925,1782811832000,-151.0,0.00010534,2]
[426773926,1782811832000,-500.0,0.00010534,2]
[426773928,1782811832000,-2090.1810723,0.00010534,2]
[426773924,1782811832000,-322.5,0.00010529,2]
[426773920,1782811832000,-302.97,0.00010436,2]
[426773922,1782811832000,-153.0,0.00010499,2]
[426773921,1782811832000,-302.97,0.00010491,2]
[426773944,1782811832000,-900.0,0.00010534,2]
[426773923,1782811832000,-10639.353878,0.00010527,2]
[426773917,1782811832000,-302.97,0.00010327,2]
[426773919,1782811832000,-260.11075874,0.00010434,2]
[426773916,1782811832000,-322.5,0.00010278,2]
[426773918,1782811832000,-302.97,0.00010381,2]
[426773927,1782811832000,-1957.3438917,0.00010534,2]
[426773961,1782811838000,-331.42,9.685e-05,2]
[426773962,1782811838000,-331.42,9.802e-05,2]
[426773963,1782811838000,-8436.80063257,0.00010534,2]
[426773965,1782811838000,-2232.685,0.00010534,2]
[426773964,1782811838000,-834.08597618,0.00010534,2]
[426773966,1782811838000,-8360.72488019,0.00010534,2]
[426773967,1782811838000,-584.02688268,0.00010534,2]
[426773968,1782811838000,-315.0,0.00010534,2]
[426773969,1782811838000,-1173.66848847,0.00010534,2]
[426774003,1782811840000,-322.5,0.0001103,2]
[426774001,1782811840000,-150.0,0.00010959,2]
[426774002,1782811840000,-666.39205338,0.00010999,2]
[426774000,1782811840000,-150.0,0.00010959,2]
[426773999,1782811840000,-166.66,0.00010959,2]
[426773998,1782811840000,-162.99,0.00010876,2]
[426773995,1782811840000,-322.5,0.00010779,2]
[426773997,1782811840000,-500.0,0.00010808,2]
[426773992,1782811840000,-150.0,0.00010541,2]
[426773996,1782811840000,-500.0,0.00010795,2]
[426773991,1782811840000,-151.0,0.00010541,2]
[426774005,1782811840000,-32434.66227527,0.00011099,2]
[426773989,1782811840000,-150.0,0.00010541,2]
[426773990,1782811840000,-151.0,0.00010541,2]
[426773987,1782811840000,-249.93096909,0.00010541,2]
[426773986,1782811840000,-181.2884264,0.0001054,2]
[426773988,1782811840000,-151.0,0.00010541,2]
[426773982,1782811840000,-354355.0,0.00010534,2]
[426773984,1782811840000,-3798.7874778,0.00010534,2]
[426773983,1782811840000,-173.713909,0.00010534,2]
[426773985,1782811840000,-288445.5782775,0.00010534,2]
[426773981,1782811840000,-28043.39268438,0.00010534,2]
[426773993,1782811840000,-216.62538722,0.00010633,2]
[426774007,1782811840000,-166.66,0.00011178,2]
[426773994,1782811840000,-160.0,0.00010682,2]
[426774006,1782811840000,-14339.34561359,0.00011099,2]
[426774004,1782811840000,-166.66,0.00011068,2]
[426774029,1782811840000,-901.0,0.00012263,2]
[426774027,1782811840000,-166.66,0.00011507,2]
[426774030,1782811840000,-433.0,0.00012342,2]
[426774026,1782811840000,-500.0,0.00011479,2]
[426774028,1782811840000,-200.0,0.00012087,2]
[426774024,1782811840000,-166.66,0.00011397,2]
[426774022,1782811840000,-9549.79,0.00011281,2]
[426774021,1782811840000,-4999.99,0.00011281,2]
[426774023,1782811840000,-166.66,0.00011288,2]
[426774020,1782811840000,-299.99,0.00011281,2]
[426774025,1782811840000,-14339.34561351,0.00011448,2]
[426774016,1782811840000,-5268.56,0.00011281,2]
[426774018,1782811840000,-150.99,0.00011281,2]
[426774017,1782811840000,-22050.63,0.00011281,2]
[426774015,1782811840000,-9999.99,0.00011281,2]
[426774014,1782811840000,-9999.99,0.00011281,2]
[426774010,1782811840000,-300.0,0.0001128,2]
[426774013,1782811840000,-6783.94,0.00011281,2]
[426774012,1782811840000,-809.92,0.00011281,2]
[426774011,1782811840000,-9999.99,0.00011281,2]
[426774009,1782811840000,-160.0,0.0001124,2]
[426774019,1782811840000,-999.99,0.00011281,2]
[426774008,1782811840000,-255.0,0.00011229,2]
[426774071,1782811841000,-500.0,0.00014887,2]
[426774070,1782811841000,-223.43928897,0.00014863,2]
[426774068,1782811841000,-5252.601,0.00014742,2]
[426774069,1782811841000,-159.931,0.00014742,2]
[426774063,1782811841000,-199.5,0.00014089,2]
[426774066,1782811841000,-25335.9,0.00014497,2]
[426774065,1782811841000,-14339.34561351,0.00014492,2]
[426774064,1782811841000,-200.0,0.00014301,2]
[426774062,1782811841000,-275.474306,0.00014054,2]
[426774072,1782811841000,-551.91895044,0.00014887,2]
[426774067,1782811841000,-200.0,0.00014695,2]
[426774075,1782811841000,-500.0,0.00014887,2]
[426774085,1782811841000,-1514.56846968,0.00014984,2]
[426774084,1782811841000,-159.18385844,0.00014954,2]
[426774073,1782811841000,-500.0,0.00014887,2]
[426774076,1782811841000,-500.0,0.00014887,2]
[426774082,1782811841000,-260.11075873,0.00014913,2]
[426774081,1782811841000,-787.0,0.00014907,2]
[426774080,1782811841000,-8800.0,0.000149,5]
[426774078,1782811841000,-1031.21,0.00014887,2]
[426774079,1782811841000,-3711.0,0.00014888,5]
[426774083,1782811841000,-350.0,0.00014941,2]
[426774088,1782811841000,-572.94062002,0.00015008,2]
[426774061,1782811841000,-3562.0,0.0001394,5]
[426774086,1782811841000,-1990.40707956,0.00015,2]
[426774087,1782811841000,-217.07165414,0.00015008,2]
[426774077,1782811841000,-1031.21,0.00014887,2]
[426774057,1782811841000,-500.0,0.00013698,2]
[426774049,1782811841000,-500.0,0.00013698,2]
[426774060,1782811841000,-666.39205336,0.00013715,2]
[426774033,1782811841000,-260.11075873,0.00012674,2]
[426774035,1782811841000,-357.84408841,0.00012681,2]
[426774031,1782811841000,-14339.34561351,0.00012463,2]
[426774034,1782811841000,-200.33,0.00012679,2]
[426774032,1782811841000,-167.19,0.00012466,2]
[426774036,1782811841000,-3832.81,0.00012959,2]
[426774037,1782811841000,-1934.718091,0.0001305,2]
[426774038,1782811841000,-166.71724647,0.00013415,2]
[426774039,1782811841000,-14339.34561351,0.00013477,2]
[426774040,1782811841000,-736.0,0.00013558,2]
[426774042,1782811841000,-500.0,0.00013698,2]
[426774041,1782811841000,-171.23,0.00013574,2]
[426774059,1782811841000,-200.0,0.00013699,2]
[426774043,1782811841000,-500.0,0.00013698,2]
[426774046,1782811841000,-509.80487002,0.00013698,2]
[426774044,1782811841000,-186.63461974,0.00013698,2]
[426774047,1782811841000,-306.62119098,0.00013698,2]
[426774048,1782811841000,-500.0,0.00013698,2]
[426774054,1782811841000,-1031.21,0.00013698,2]
[426774050,1782811841000,-500.0,0.00013698,2]
[426774051,1782811841000,-500.0,0.00013698,2]
[426774052,1782811841000,-500.0,0.00013698,2]
[426774053,1782811841000,-1031.21,0.00013698,2]
[426774055,1782811841000,-1031.21,0.00013698,2]
[426774058,1782811841000,-439.72189893,0.00013698,2]
[426774056,1782811841000,-500.0,0.00013698,2]
[426774045,1782811841000,-500.0,0.00013698,2]
[426774091,1782811841000,-325.0,0.00015013,2]
[426774074,1782811841000,-500.0,0.00014887,2]
[426774093,1782811841000,-6088.0,0.00015013,2]
[426774123,1782811841000,-298.87,0.000152,2]
[426774121,1782811841000,-10000.0,0.00015186,2]
[426774124,1782811841000,-1483.03562848,0.00015218,2]
[426774126,1782811841000,-10000.0,0.00015251,2]
[426774128,1782811841000,-2719.37714403,0.00015288,2]
[426774127,1782811841000,-2809.49929485,0.00015254,2]
[426774129,1782811841000,-200.0,0.0001529,2]
[426774130,1782811841000,-1990.40707956,0.000153,2]
[426774131,1782811841000,-3521.45709651,0.00015316,2]
[426774132,1782811841000,-395.0,0.00015341,2]
[426774133,1782811841000,-386.0,0.00015343,2]
[426774134,1782811841000,-387.0,0.00015344,2]
[426774135,1782811841000,-386.0,0.00015355,2]
[426774136,1782811841000,-386.0,0.00015356,2]
[426774137,1782811841000,-386.0,0.00015358,2]
[426774138,1782811841000,-386.0,0.00015366,2]
[426774140,1782811841000,-2719.37714403,0.0001537,2]
[426774139,1782811841000,-386.0,0.00015369,2]
[426774141,1782811841000,-386.0,0.00015391,2]
[426774143,1782811841000,-386.0,0.00015391,2]
[426774142,1782811841000,-386.0,0.00015391,2]
[426774144,1782811841000,-386.0,0.00015391,2]
[426774145,1782811841000,-198.0,0.00015398,2]
[426774146,1782811841000,-386.0,0.00015406,2]
[426774148,1782811841000,-10000.0,0.00015413,2]
[426774147,1782811841000,-386.0,0.00015408,2]
[426774089,1782811841000,-1278.0,0.00015013,2]
[426774125,1782811841000,-1829.85133161,0.00015225,2]
[426774122,1782811841000,-1990.40707956,0.000152,2]
[426774149,1782811841000,-395.0,0.00015414,2]
[426774120,1782811841000,-249.986,0.00015174,2]
[426774090,1782811841000,-1362.0,0.00015013,2]
[426774092,1782811841000,-1231.0,0.00015013,2]
[426774099,1782811841000,-500.0,0.00015098,2]
[426774094,1782811841000,-3565.0,0.00015013,2]
[426774098,1782811841000,-500.0,0.00015098,2]
[426774100,1782811841000,-500.0,0.00015098,2]
[426774097,1782811841000,-500.0,0.00015098,2]
[426774095,1782811841000,-882.18777766,0.00015089,2]
[426774119,1782811841000,-192.0,0.00015174,2]
[426774102,1782811841000,-1957.3438917,0.00015099,2]
[426774103,1782811841000,-2090.1810723,0.00015099,2]
[426774104,1782811841000,-364835.0,0.00015099,2]
[426774101,1782811841000,-1031.21,0.00015098,2]
[426774096,1782811841000,-200.0,0.00015089,2]
[426774106,1782811841000,-354355.0,0.00015099,2]
[426774118,1782811841000,-250.0,0.00015174,2]
[426774105,1782811841000,-172017.5,0.00015099,2]
[426774115,1782811841000,-150.612,0.00015174,2]
[426774116,1782811841000,-181.596,0.00015174,2]
[426774117,1782811841000,-168.056,0.00015174,2]
[426774112,1782811841000,-350.0,0.00015142,2]
[426774114,1782811841000,-350.0,0.00015161,2]
[426774113,1782811841000,-156.80613944,0.0001516,2]
[426774108,1782811841000,-1031.21,0.00015108,2]
[426774109,1782811841000,-1031.21,0.00015108,2]
[426774110,1782811841000,-9149.91586405,0.00015116,2]
[426774107,1782811841000,-288445.5782775,0.00015099,2]
[426774111,1782811841000,-350.0,0.00015118,2]
[426774187,1782811842000,-386.0,0.00015586,2]
[426774191,1782811842000,-1990.40707956,0.000156,2]
[426774189,1782811842000,-395.0,0.00015595,2]
[426774188,1782811842000,-386.0,0.00015587,2]
[426774182,1782811842000,-386.0,0.00015564,2]
[426774183,1782811842000,-386.0,0.00015565,2]
[426774184,1782811842000,-529.34323438,0.00015565,2]
[426774186,1782811842000,-387.0,0.00015584,2]
[426774181,1782811842000,-386.0,0.00015559,2]
[426774185,1782811842000,-386.0,0.00015574,2]
[426774190,1782811842000,-332.0,0.00015597,2]
[426774204,1782811842000,-2719.37714403,0.00015781,2]
[426774194,1782811842000,-249.23748603,0.00015616,2]
[426774196,1782811842000,-1567.82170304,0.00015616,2]
[426774193,1782811842000,-500.0,0.00015611,2]
[426774195,1782811842000,-173.55058,0.00015616,2]
[426774197,1782811842000,-2719.37714403,0.00015616,2]
[426774198,1782811842000,-2719.37714403,0.00015671,2]
[426774199,1782811842000,-174.46395525,0.00015688,2]
[426774200,1782811842000,-247.46088177,0.00015688,2]
[426774202,1782811842000,-152.0,0.00015707,2]
[426774201,1782811842000,-152.0,0.00015707,2]
[426774203,1782811842000,-2719.37714403,0.00015726,2]
[426774205,1782811842000,-1990.40707956,0.000158,2]
[426774176,1782811842000,-387.0,0.00015549,2]
[426774192,1782811842000,-387.0,0.0001561,2]
[426774178,1782811842000,-350.01,0.00015551,2]
[426774163,1782811842000,-5719.2005297,0.0001548,2]
[426774179,1782811842000,-387.0,0.00015553,2]
[426774207,1782811842000,-2719.37714403,0.00015863,2]
[426774150,1782811842000,-387.0,0.00015418,2]
[426774152,1782811842000,-2719.37714403,0.00015425,2]
[426774151,1782811842000,-387.0,0.00015421,2]
[426774153,1782811842000,-387.0,0.00015425,2]
[426774154,1782811842000,-386.0,0.00015431,2]
[426774155,1782811842000,-386.0,0.0001544,2]
[426774156,1782811842000,-395.0,0.00015443,2]
[426774157,1782811842000,-386.0,0.00015447,2]
[426774161,1782811842000,-386.0,0.00015465,2]
[426774158,1782811842000,-386.0,0.00015453,2]
[426774159,1782811842000,-386.0,0.00015455,2]
[426774180,1782811842000,-386.0,0.00015555,2]
[426774160,1782811842000,-395.0,0.0001546,2]
[426774164,1782811842000,-386.0,0.00015484,2]
[426774166,1782811842000,-200.0,0.0001549,2]
[426774165,1782811842000,-387.0,0.00015486,2]
[426774167,1782811842000,-387.0,0.00015495,2]
[426774168,1782811842000,-386.0,0.00015497,2]
[426774170,1782811842000,-386.0,0.000155,2]
[426774169,1782811842000,-1990.40707956,0.000155,2]
[426774172,1782811842000,-386.0,0.00015501,2]
[426774171,1782811842000,-386.0,0.000155,2]
[426774174,1782811842000,-386.0,0.00015523,2]
[426774175,1782811842000,-2719.37714403,0.00015534,2]
[426774177,1782811842000,-386.0,0.0001555,2]
[426774162,1782811842000,-2719.37714403,0.00015479,2]
[426774209,1782811842000,-278.95982884,0.000159,2]
[426774173,1782811842000,-387.0,0.00015505,2]
[426774206,1782811842000,-173.55058,0.00015816,2]
[426774242,1782811842000,-3798.7874778,0.00017381,2]
[426774243,1782811842000,-385.35058046,0.00017453,2]
[426774244,1782811842000,-207.65619834,0.0001762,2]
[426774241,1782811842000,-156.80613944,0.0001716,2]
[426774249,1782811842000,-255.23449308,0.00017757,2]
[426774245,1782811842000,-502.0,0.00017668,3]
[426774247,1782811842000,-244.49298724,0.00017757,2]
[426774251,1782811842000,-362.02637173,0.00017757,2]
[426774253,1782811842000,-150.0,0.00017963,2]
[426774256,1782811842000,-1278.0,0.00018013,2]
[426774255,1782811842000,-375.84362576,0.00018,2]
[426774254,1782811842000,-150.0,0.00017963,2]
[426774239,1782811842000,-502.0,0.00016889,2]
[426774258,1782811842000,-283.0,0.00018013,2]
[426774257,1782811842000,-1362.0,0.00018013,2]
[426774259,1782811842000,-1231.0,0.00018013,2]
[426774262,1782811842000,-150.0,0.00018174,2]
[426774261,1782811842000,-3565.0,0.00018013,2]
[426774263,1782811842000,-150.0,0.00018174,2]
[426774265,1782811842000,-150.0,0.00018174,2]
[426774266,1782811842000,-500.0,0.00018356,7]
[426774264,1782811842000,-150.0,0.00018174,2]
[426774267,1782811842000,-298.87,0.000184,2]
[426774271,1782811842000,-288.22339667,0.00018423,2]
[426774269,1782811842000,-258.19211104,0.00018423,2]
[426774208,1782811842000,-1990.40707956,0.000159,2]
[426774260,1782811842000,-6088.0,0.00018013,2]
[426774240,1782811842000,-11800.0,0.000169,6]
[426774252,1782811842000,-150.0,0.00017963,2]
[426774237,1782811842000,-308.95034414,0.00016784,2]
[426774210,1782811842000,-2719.37714403,0.00015918,2]
[426774212,1782811842000,-173.55058,0.00016016,2]
[426774238,1782811842000,-326.88364524,0.00016822,2]
[426774214,1782811842000,-502.0,0.0001611,2]
[426774213,1782811842000,-1990.40707956,0.000161,2]
[426774211,1782811842000,-2719.37714403,0.00015973,2]
[426774216,1782811842000,-350.0,0.000162,2]
[426774217,1782811842000,-173.55058,0.00016216,2]
[426774218,1782811842000,-350.0,0.00016256,2]